[Event "Titled Tuesday Blitz December 27 Late 2022"]
[White "Torres Dominguez, David"]
[Black "Rosen, Eric"]
[WhiteFideId "2220857"]
[BlackFideId "2032562"]
[WhiteElo "1994"]
[BlackElo "2349"]
[Result "0-1"]
[Round "02"]
[TimeControl "180+2"]
[Date "2022.12.27"]
[WhiteClock "0:00:37"]
[BlackClock "0:01:12"]

1. e4 {[%clk 0:02:57]}  c5 {[%clk 0:02:57]} 2. Nc3 {[%clk 0:02:56]}  e6 {[%clk 0:02:56]} 3. f4 {[%clk 0:02:54]}  a6 {[%clk 0:02:55]} 4. a4 {[%clk 0:02:51]}  Nc6 {[%clk 0:02:54]} 5. Nf3 {[%clk 0:02:51]}  d5 {[%clk 0:02:55]} 6. d3 {[%clk 0:02:50]}  Nge7 {[%clk 0:02:53]} 7. Be2 {[%clk 0:02:46]}  g6 {[%clk 0:02:53]} 8. O-O {[%clk 0:02:47]}  Bg7 {[%clk 0:02:53]} 9. Bd2 {[%clk 0:02:44]}  O-O {[%clk 0:02:53]} 10. Qe1 {[%clk 0:02:41]}  Nd4 {[%clk 0:02:46]} 11. Nxd4 {[%clk 0:02:28]}  cxd4 {[%clk 0:02:46]} 12. Kh1 {[%clk 0:02:23]}  dxc3 {[%clk 0:02:44]} 13. Bxc3 {[%clk 0:02:23]}  Nc6 {[%clk 0:02:26]} 14. Bxg7 {[%clk 0:02:19]}  Kxg7 {[%clk 0:02:26]} 15. f5 {[%clk 0:02:17]}  exf5 {[%clk 0:02:23]} 16. exf5 {[%clk 0:02:11]}  Bxf5 {[%clk 0:02:12]} 17. Qg3 {[%clk 0:02:03]}  Qd7 {[%clk 0:01:54]} 18. c3 {[%clk 0:01:56]}  Rae8 {[%clk 0:01:52]} 19. Qf2 {[%clk 0:01:32]}  Ne5 {[%clk 0:01:40]} 20. d4 {[%clk 0:01:28]}  Nc4 {[%clk 0:01:34]} 21. Bf3 {[%clk 0:01:18]}  Qd6 {[%clk 0:01:28]} 22. Rg1 {[%clk 0:01:04]}  Be4 {[%clk 0:01:24]} 23. Bg4 {[%clk 0:00:56]}  f5 {[%clk 0:01:23]} 24. Bh3 {[%clk 0:00:47]}  Qb6 {[%clk 0:01:19]} 25. b3 {[%clk 0:00:46]}  Qxb3 {[%clk 0:01:16]} 26. Qh4 {[%clk 0:00:37]}  Qxc3 {[%clk 0:01:12]} 0-1


[Site "https://www.chess.com"]

[Event "Titled Tuesday Blitz December 27 Late 2022"]
[White "Tworuszka, Michal"]
[Black "Sukandar, Irine Kharisma"]
[WhiteFideId "1117858"]
[BlackFideId "7101937"]
[WhiteElo "2260"]
[BlackElo "2390"]
[Result "0-1"]
[Round "02"]
[TimeControl "180+2"]
[Date "2022.12.27"]
[WhiteClock "0:00:01"]
[BlackClock "0:00:51"]

1. d4 {[%clk 0:02:54]}  Nf6 {[%clk 0:02:59]} 2. c4 {[%clk 0:02:53]}  c5 {[%clk 0:02:56]} 3. d5 {[%clk 0:02:52]}  b5 {[%clk 0:02:56]} 4. cxb5 {[%clk 0:02:52]}  a6 {[%clk 0:02:56]} 5. e3 {[%clk 0:02:52]}  g6 {[%clk 0:02:54]} 6. Nc3 {[%clk 0:02:50]}  Bg7 {[%clk 0:02:54]} 7. a4 {[%clk 0:02:48]}  O-O {[%clk 0:02:53]} 8. Nf3 {[%clk 0:02:47]}  Bb7 {[%clk 0:02:53]} 9. e4 {[%clk 0:02:47]}  d6 {[%clk 0:02:51]} 10. Ra3 {[%clk 0:02:46]}  Nbd7 {[%clk 0:02:49]} 11. Bd2 {[%clk 0:02:34]}  Qc7 {[%clk 0:02:37]} 12. bxa6 {[%clk 0:02:15]}  Bxa6 {[%clk 0:02:37]} 13. Bxa6 {[%clk 0:02:15]}  Rxa6 {[%clk 0:02:36]} 14. O-O {[%clk 0:02:14]}  Rb8 {[%clk 0:02:34]} 15. Qc2 {[%clk 0:02:12]}  Ng4 {[%clk 0:02:30]} 16. Nb5 {[%clk 0:02:03]}  Qb7 {[%clk 0:02:21]} 17. Bc3 {[%clk 0:01:59]}  Nge5 {[%clk 0:02:10]} 18. Nxe5 {[%clk 0:01:57]}  Bxe5 {[%clk 0:02:07]} 19. f4 {[%clk 0:01:35]}  Bxc3 {[%clk 0:01:59]} 20. Qxc3 {[%clk 0:01:35]}  Rba8 {[%clk 0:01:57]} 21. Rfa1 {[%clk 0:01:27]}  Nb6 {[%clk 0:01:50]} 22. b3 {[%clk 0:01:10]}  c4 {[%clk 0:01:50]} 23. a5 {[%clk 0:00:47]}  cxb3 {[%clk 0:01:44]} 24. Qxb3 {[%clk 0:00:34]}  Nd7 {[%clk 0:01:37]} 25. Kh1 {[%clk 0:00:22]}  Nc5 {[%clk 0:01:35]} 26. Qc4 {[%clk 0:00:19]}  Nxe4 {[%clk 0:01:26]} 27. Qxe4 {[%clk 0:00:16]}  Qxb5 {[%clk 0:01:26]} 28. h3 {[%clk 0:00:15]}  Rxa5 {[%clk 0:01:23]} 29. Rxa5 {[%clk 0:00:15]}  Rxa5 {[%clk 0:01:23]} 30. Rxa5 {[%clk 0:00:15]}  Qxa5 {[%clk 0:01:23]} 31. Qxe7 {[%clk 0:00:11]}  Qxd5 {[%clk 0:01:22]} 32. Qd8+ {[%clk 0:00:11]}  Kg7 {[%clk 0:01:22]} 33. Kh2 {[%clk 0:00:09]}  Qd4 {[%clk 0:01:20]} 34. g3 {[%clk 0:00:08]}  Qf2+ {[%clk 0:01:12]} 35. Kh1 {[%clk 0:00:08]}  Qxg3 {[%clk 0:01:10]} 36. Qxd6 {[%clk 0:00:08]}  Qxh3+ {[%clk 0:01:10]} 37. Kg1 {[%clk 0:00:08]}  Qg4+ {[%clk 0:01:10]} 38. Kh2 {[%clk 0:00:07]}  h5 {[%clk 0:01:04]} 39. Qe5+ {[%clk 0:00:06]}  Kh7 {[%clk 0:01:03]} 40. Qf6 {[%clk 0:00:05]}  Qe6 {[%clk 0:01:01]} 41. Qg5 {[%clk 0:00:03]}  Kg7 {[%clk 0:00:53]} 42. Qd8 {[%clk 0:00:01]}  Qe2+ {[%clk 0:00:51]} 0-1


[Site "https://www.chess.com"]

[Event "Titled Tuesday Blitz December 27 Late 2022"]
[White "Urbina Perez, Juan Antonio"]
[Black "Rian, Kapriaga"]
[WhiteFideId "2217368"]
[BlackFideId "7103263"]
[WhiteElo "2266"]
[BlackElo "2089"]
[Result "1-0"]
[Round "02"]
[TimeControl "180+2"]
[Date "2022.12.27"]
[WhiteClock "0:00:04"]
[BlackClock "0:00:01"]

1. e4 {[%clk 0:03:00]}  c6 {[%clk 0:02:59]} 2. d4 {[%clk 0:02:59]}  d5 {[%clk 0:02:59]} 3. exd5 {[%clk 0:03:00]}  cxd5 {[%clk 0:02:58]} 4. Bd3 {[%clk 0:03:00]}  Nc6 {[%clk 0:02:57]} 5. c3 {[%clk 0:03:00]}  Qc7 {[%clk 0:02:56]} 6. Ne2 {[%clk 0:02:59]}  e5 {[%clk 0:02:54]} 7. dxe5 {[%clk 0:02:56]}  Nxe5 {[%clk 0:02:53]} 8. O-O {[%clk 0:02:51]}  Nf6 {[%clk 0:02:52]} 9. Nd4 {[%clk 0:02:42]}  Nxd3 {[%clk 0:02:35]} 10. Qxd3 {[%clk 0:02:42]}  Be7 {[%clk 0:02:28]} 11. h3 {[%clk 0:02:24]}  O-O {[%clk 0:02:16]} 12. Nd2 {[%clk 0:02:23]}  Bd7 {[%clk 0:02:06]} 13. Re1 {[%clk 0:02:22]}  Rfe8 {[%clk 0:02:04]} 14. N2f3 {[%clk 0:02:20]}  Bd6 {[%clk 0:01:59]} 15. Be3 {[%clk 0:02:15]}  a6 {[%clk 0:01:57]} 16. Rad1 {[%clk 0:02:06]}  Rad8 {[%clk 0:01:54]} 17. Bg5 {[%clk 0:02:05]}  Be7 {[%clk 0:01:41]} 18. Nf5 {[%clk 0:01:56]}  Bxf5 {[%clk 0:01:23]} 19. Qxf5 {[%clk 0:01:54]}  Qb6 {[%clk 0:01:08]} 20. Rd2 {[%clk 0:01:26]}  Ne4 {[%clk 0:00:57]} 21. Bxe7 {[%clk 0:00:45]}  Nxd2 {[%clk 0:00:34]} 22. Nxd2 {[%clk 0:00:45]}  Qxb2 {[%clk 0:00:18]} 23. Nf3 {[%clk 0:00:36]}  Rc8 {[%clk 0:00:10]} 24. Bb4 {[%clk 0:00:18]}  Qxa2 {[%clk 0:00:10]} 25. Rxe8+ {[%clk 0:00:17]}  Rxe8 {[%clk 0:00:08]} 26. Qd7 {[%clk 0:00:18]}  Ra8 {[%clk 0:00:03]} 27. Qxb7 {[%clk 0:00:17]}  Re8 {[%clk 0:00:03]} 28. Qd7 {[%clk 0:00:17]}  Qb1+ {[%clk 0:00:03]} 29. Kh2 {[%clk 0:00:17]}  Qe4 {[%clk 0:00:03]} 30. Bd6 {[%clk 0:00:12]}  h6 {[%clk 0:00:03]} 31. Bg3 {[%clk 0:00:12]}  a5 {[%clk 0:00:03]} 32. Nd4 {[%clk 0:00:11]}  a4 {[%clk 0:00:03]} 33. Qxa4 {[%clk 0:00:10]}  f5 {[%clk 0:00:01]} 34. Bd6 {[%clk 0:00:05]}  f4 {[%clk 0:00:01]} 35. Qd7 {[%clk 0:00:04]} 1-0


[Site "https://www.chess.com"]

[Event "Titled Tuesday Blitz December 27 Late 2022"]
[White "Vargas, Mauricio"]
[Black "Bogaudinov, Rushan"]
[WhiteFideId "4404572"]
[BlackFideId "4129288"]
[WhiteElo "2035"]
[BlackElo "1939"]
[Result "0-1"]
[Round "02"]
[TimeControl "180+2"]
[Date "2022.12.27"]
[WhiteClock "0:00:31"]
[BlackClock "0:01:36"]

1. e4 {[%clk 0:02:59]}  c5 {[%clk 0:02:59]} 2. Nc3 {[%clk 0:02:56]}  Nc6 {[%clk 0:02:58]} 3. f4 {[%clk 0:02:57]}  e6 {[%clk 0:02:58]} 4. Nf3 {[%clk 0:02:58]}  d5 {[%clk 0:02:58]} 5. e5 {[%clk 0:02:57]}  a6 {[%clk 0:02:56]} 6. d3 {[%clk 0:02:53]}  b5 {[%clk 0:02:56]} 7. g3 {[%clk 0:02:31]}  Be7 {[%clk 0:02:55]} 8. Bg2 {[%clk 0:02:32]}  h5 {[%clk 0:02:53]} 9. h3 {[%clk 0:02:31]}  Nh6 {[%clk 0:02:52]} 10. O-O {[%clk 0:02:26]}  Nf5 {[%clk 0:02:48]} 11. Kh2 {[%clk 0:02:21]}  Bb7 {[%clk 0:02:36]} 12. Ne2 {[%clk 0:02:21]}  d4 {[%clk 0:02:33]} 13. a3 {[%clk 0:02:07]}  Qc7 {[%clk 0:02:32]} 14. Bd2 {[%clk 0:02:05]}  O-O-O {[%clk 0:02:12]} 15. Qe1 {[%clk 0:02:00]}  g5 {[%clk 0:02:11]} 16. b4 {[%clk 0:01:41]}  h4 {[%clk 0:02:02]} 17. g4 {[%clk 0:01:37]}  Ne3 {[%clk 0:01:58]} 18. Bxe3 {[%clk 0:01:37]}  dxe3 {[%clk 0:01:59]} 19. Nc3 {[%clk 0:01:34]}  gxf4 {[%clk 0:01:57]} 20. bxc5 {[%clk 0:01:31]}  Bxc5 {[%clk 0:01:57]} 21. Ne4 {[%clk 0:01:30]}  Nxe5 {[%clk 0:01:50]} 22. Nxc5 {[%clk 0:01:29]}  Qxc5 {[%clk 0:01:49]} 23. d4 {[%clk 0:01:27]}  Nxf3+ {[%clk 0:01:46]} 24. Bxf3 {[%clk 0:01:25]}  Rxd4 {[%clk 0:01:46]} 25. Bxb7+ {[%clk 0:01:23]}  Kxb7 {[%clk 0:01:46]} 26. Qe2 {[%clk 0:01:12]}  Rd2 {[%clk 0:01:45]} 27. Qxd2 {[%clk 0:00:39]}  exd2 {[%clk 0:01:43]} 28. Rxf4 {[%clk 0:00:38]}  Qe5 {[%clk 0:01:41]} 29. Rf1 {[%clk 0:00:31]}  d1=Q {[%clk 0:01:37]} 30. Rxd1 {[%clk 0:00:31]}  Qxf4+ {[%clk 0:01:37]} 31. Kg1 {[%clk 0:00:30]}  Qg3+ {[%clk 0:01:35]} 32. Kf1 {[%clk 0:00:29]}  Qxh3+ {[%clk 0:01:35]} 33. Ke2 {[%clk 0:00:29]}  Qxg4+ {[%clk 0:01:35]} 34. Kd2 {[%clk 0:00:29]}  Qxd1+ {[%clk 0:01:35]} 35. Kxd1 {[%clk 0:00:29]}  h3 {[%clk 0:01:36]} 36. Ke1 {[%clk 0:00:29]}  h2 {[%clk 0:01:36]} 37. Kf2 {[%clk 0:00:30]}  h1=Q {[%clk 0:01:37]} 38. Ke3 {[%clk 0:00:30]}  Qd5 {[%clk 0:01:37]} 39. Kf4 {[%clk 0:00:31]}  Rh4+ {[%clk 0:01:36]} 0-1


[Site "https://www.chess.com"]

[Event "Titled Tuesday Blitz December 27 Late 2022"]
[White "Xiong, Jeffery"]
[Black "Martinez Ramirez, Lennis"]
[WhiteFideId "2047640"]
[BlackFideId "3509079"]
[WhiteElo "2692"]
[BlackElo "2426"]
[Result "1-0"]
[Round "02"]
[TimeControl "180+2"]
[Date "2022.12.27"]
[WhiteClock "0:00:08"]
[BlackClock "0:00:01"]

1. e4 {[%clk 0:03:00]}  c5 {[%clk 0:02:59]} 2. Nf3 {[%clk 0:03:01]}  d6 {[%clk 0:02:56]} 3. Nc3 {[%clk 0:03:01]}  a6 {[%clk 0:02:51]} 4. d4 {[%clk 0:03:01]}  cxd4 {[%clk 0:02:51]} 5. Qxd4 {[%clk 0:03:02]}  Nc6 {[%clk 0:02:50]} 6. Qd3 {[%clk 0:03:02]}  g6 {[%clk 0:02:47]} 7. Bg5 {[%clk 0:02:48]}  Bg7 {[%clk 0:02:42]} 8. Be2 {[%clk 0:02:48]}  Bg4 {[%clk 0:02:39]} 9. Nd5 {[%clk 0:02:32]}  h6 {[%clk 0:02:03]} 10. Bh4 {[%clk 0:02:32]}  g5 {[%clk 0:02:03]} 11. Bg3 {[%clk 0:02:32]}  Bxf3 {[%clk 0:02:03]} 12. Bxf3 {[%clk 0:02:27]}  e6 {[%clk 0:01:55]} 13. Ne3 {[%clk 0:02:16]}  Ne5 {[%clk 0:01:54]} 14. Bxe5 {[%clk 0:02:12]}  Bxe5 {[%clk 0:01:50]} 15. Nc4 {[%clk 0:02:12]}  b5 {[%clk 0:01:49]} 16. Nxe5 {[%clk 0:02:11]}  dxe5 {[%clk 0:01:50]} 17. O-O-O {[%clk 0:02:09]}  Qxd3 {[%clk 0:01:48]} 18. Rxd3 {[%clk 0:02:09]}  Ne7 {[%clk 0:01:48]} 19. Bh5 {[%clk 0:01:55]}  O-O {[%clk 0:01:35]} 20. Rhd1 {[%clk 0:01:43]}  Nc6 {[%clk 0:01:34]} 21. Rd7 {[%clk 0:01:30]}  b4 {[%clk 0:01:09]} 22. R1d6 {[%clk 0:01:16]}  Rac8 {[%clk 0:01:06]} 23. Kd2 {[%clk 0:00:53]}  Nd4 {[%clk 0:01:04]} 24. c3 {[%clk 0:00:37]}  Nb5 {[%clk 0:01:04]} 25. Rxa6 {[%clk 0:00:37]}  bxc3+ {[%clk 0:01:03]} 26. bxc3 {[%clk 0:00:38]}  Nxc3 {[%clk 0:01:04]} 27. Ke3 {[%clk 0:00:38]}  Nb5 {[%clk 0:00:57]} 28. a4 {[%clk 0:00:34]}  Nd4 {[%clk 0:00:57]} 29. Kd3 {[%clk 0:00:16]}  Rb8 {[%clk 0:00:51]} 30. Raa7 {[%clk 0:00:13]}  Rb3+ {[%clk 0:00:51]} 31. Kc4 {[%clk 0:00:13]}  Rc8+ {[%clk 0:00:51]} 32. Rdc7 {[%clk 0:00:12]}  Rxc7+ {[%clk 0:00:03]} 33. Rxc7 {[%clk 0:00:13]}  Rb2 {[%clk 0:00:03]} 34. Rxf7 {[%clk 0:00:13]}  Rc2+ {[%clk 0:00:03]} 35. Kb4 {[%clk 0:00:13]}  Rb2+ {[%clk 0:00:03]} 36. Kc5 {[%clk 0:00:13]}  Ra2 {[%clk 0:00:01]} 37. Kd6 {[%clk 0:00:08]} 1-0


[Site "https://www.chess.com"]

[Event "Titled Tuesday Blitz December 27 Late 2022"]
[White "Yuan, Qingyu"]
[Black "Kretchetov, Alexandre"]
[WhiteFideId "8609772"]
[BlackFideId "4124588"]
[WhiteElo "2373"]
[BlackElo "2195"]
[Result "1-0"]
[Round "02"]
[TimeControl "180+2"]
[Date "2022.12.27"]
[WhiteClock "0:00:09"]
[BlackClock "0:00:29"]

1. e4 {[%clk 0:03:00]}  e5 {[%clk 0:02:58]} 2. Nf3 {[%clk 0:03:00]}  Nc6 {[%clk 0:02:58]} 3. Bb5 {[%clk 0:03:01]}  g6 {[%clk 0:02:57]} 4. d4 {[%clk 0:03:01]}  exd4 {[%clk 0:02:57]} 5. Bg5 {[%clk 0:03:01]}  Be7 {[%clk 0:02:57]} 6. Bxe7 {[%clk 0:03:01]}  Qxe7 {[%clk 0:02:57]} 7. O-O {[%clk 0:03:02]}  Qc5 {[%clk 0:02:57]} 8. Bxc6 {[%clk 0:03:00]}  dxc6 {[%clk 0:02:57]} 9. Qxd4 {[%clk 0:02:59]}  Qxd4 {[%clk 0:02:57]} 10. Nxd4 {[%clk 0:03:00]}  Bd7 {[%clk 0:02:56]} 11. Nc3 {[%clk 0:03:00]}  f6 {[%clk 0:02:55]} 12. f4 {[%clk 0:02:59]}  O-O-O {[%clk 0:02:51]} 13. Rad1 {[%clk 0:02:51]}  Nh6 {[%clk 0:02:49]} 14. h3 {[%clk 0:02:44]}  Nf7 {[%clk 0:02:41]} 15. Rfe1 {[%clk 0:02:39]}  Rhe8 {[%clk 0:02:40]} 16. Kf2 {[%clk 0:02:38]}  a6 {[%clk 0:02:36]} 17. Rd3 {[%clk 0:02:25]}  Re7 {[%clk 0:02:32]} 18. Nf3 {[%clk 0:02:19]}  Be6 {[%clk 0:02:25]} 19. Rxd8+ {[%clk 0:02:14]}  Kxd8 {[%clk 0:02:25]} 20. Rd1+ {[%clk 0:02:06]}  Ke8 {[%clk 0:02:21]} 21. Re1 {[%clk 0:02:06]}  Bc8 {[%clk 0:02:20]} 22. Nb1 {[%clk 0:01:44]}  f5 {[%clk 0:02:09]} 23. Nbd2 {[%clk 0:01:26]}  c5 {[%clk 0:02:03]} 24. c3 {[%clk 0:01:23]}  b6 {[%clk 0:02:02]} 25. exf5 {[%clk 0:01:19]}  Bxf5 {[%clk 0:02:01]} 26. a3 {[%clk 0:01:10]}  a5 {[%clk 0:01:59]} 27. Rxe7+ {[%clk 0:01:05]}  Kxe7 {[%clk 0:01:59]} 28. g4 {[%clk 0:01:05]}  Bd7 {[%clk 0:01:56]} 29. Ke3 {[%clk 0:01:04]}  Bc6 {[%clk 0:01:48]} 30. Ne4 {[%clk 0:01:03]}  Nd6 {[%clk 0:01:39]} 31. Ned2 {[%clk 0:01:02]}  Nf7 {[%clk 0:01:37]} 32. Nc4 {[%clk 0:00:59]}  Bd5 {[%clk 0:01:32]} 33. Nce5 {[%clk 0:00:58]}  Nxe5 {[%clk 0:01:31]} 34. Nxe5 {[%clk 0:00:56]}  Kf6 {[%clk 0:01:27]} 35. Nf3 {[%clk 0:00:49]}  h6 {[%clk 0:01:26]} 36. Kf2 {[%clk 0:00:43]}  Be4 {[%clk 0:01:24]} 37. Ke3 {[%clk 0:00:41]}  Bd5 {[%clk 0:01:24]} 38. Ne5 {[%clk 0:00:38]}  Be6 {[%clk 0:01:21]} 39. Kf3 {[%clk 0:00:37]}  Bd5+ {[%clk 0:01:21]} 40. Kg3 {[%clk 0:00:37]}  Be6 {[%clk 0:01:14]} 41. Nd3 {[%clk 0:00:36]}  Bc4 {[%clk 0:01:12]} 42. Nf2 {[%clk 0:00:36]}  Bd5 {[%clk 0:01:11]} 43. Kh4 {[%clk 0:00:32]}  b5 {[%clk 0:01:03]} 44. Nd3 {[%clk 0:00:28]}  c4 {[%clk 0:01:01]} 45. Ne5 {[%clk 0:00:27]}  c6 {[%clk 0:00:58]} 46. Kg3 {[%clk 0:00:27]}  Be4 {[%clk 0:00:53]} 47. Nf3 {[%clk 0:00:25]}  Bd5 {[%clk 0:00:52]} 48. Nd4 {[%clk 0:00:25]}  Be4 {[%clk 0:00:48]} 49. Kf2 {[%clk 0:00:23]}  Bd5 {[%clk 0:00:48]} 50. Ne2 {[%clk 0:00:21]}  Be4 {[%clk 0:00:48]} 51. Ng3 {[%clk 0:00:21]}  Bd5 {[%clk 0:00:47]} 52. Ke3 {[%clk 0:00:21]}  Bg2 {[%clk 0:00:46]} 53. h4 {[%clk 0:00:21]}  Bd5 {[%clk 0:00:41]} 54. Kd4 {[%clk 0:00:20]}  Bf3 {[%clk 0:00:39]} 55. g5+ {[%clk 0:00:19]}  hxg5 {[%clk 0:00:39]} 56. hxg5+ {[%clk 0:00:18]}  Ke6 {[%clk 0:00:39]} 57. Kc5 {[%clk 0:00:18]}  a4 {[%clk 0:00:38]} 58. Kd4 {[%clk 0:00:18]}  Bg2 {[%clk 0:00:37]} 59. Ke3 {[%clk 0:00:18]}  Bd5 {[%clk 0:00:37]} 60. f5+ {[%clk 0:00:17]}  gxf5 {[%clk 0:00:37]} 61. Kf4 {[%clk 0:00:17]}  c5 {[%clk 0:00:35]} 62. Nxf5 {[%clk 0:00:17]}  b4 {[%clk 0:00:34]} 63. Ne3 {[%clk 0:00:15]}  Bc6 {[%clk 0:00:31]} 64. Nxc4 {[%clk 0:00:15]}  Kd5 {[%clk 0:00:31]} 65. Ne3+ {[%clk 0:00:15]}  Ke6 {[%clk 0:00:31]} 66. cxb4 {[%clk 0:00:15]}  cxb4 {[%clk 0:00:31]} 67. axb4 {[%clk 0:00:16]}  Kd6 {[%clk 0:00:28]} 68. Kf5 {[%clk 0:00:16]}  Be8 {[%clk 0:00:29]} 69. g6 {[%clk 0:00:16]}  Kc6 {[%clk 0:00:28]} 70. Kf6 {[%clk 0:00:16]}  Bxg6 {[%clk 0:00:28]} 71. Kxg6 {[%clk 0:00:16]}  Kb5 {[%clk 0:00:28]} 72. Nc2 {[%clk 0:00:12]}  Kc4 {[%clk 0:00:29]} 73. Kf7 {[%clk 0:00:06]}  Kb3 {[%clk 0:00:29]} 74. b5 {[%clk 0:00:07]}  Kxc2 {[%clk 0:00:30]} 75. b6 {[%clk 0:00:07]}  Kxb2 {[%clk 0:00:30]} 76. b7 {[%clk 0:00:08]}  a3 {[%clk 0:00:31]} 77. b8=Q+ {[%clk 0:00:09]}  Ka1 {[%clk 0:00:31]} 78. Qe5+ {[%clk 0:00:09]}  Kb1 {[%clk 0:00:31]} 79. Qe1+ {[%clk 0:00:09]}  Kb2 {[%clk 0:00:30]} 80. Qd2+ {[%clk 0:00:09]}  Ka1 {[%clk 0:00:30]} 81. Qc1+ {[%clk 0:00:08]}  Ka2 {[%clk 0:00:29]} 82. Ke6 {[%clk 0:00:08]}  Kb3 {[%clk 0:00:30]} 83. Qb1+ {[%clk 0:00:08]}  Ka4 {[%clk 0:00:29]} 84. Qa2 {[%clk 0:00:09]} 1-0


[Site "https://www.chess.com"]

[Event "Titled Tuesday Blitz December 27 Late 2022"]
[White "Yurasova, Daria"]
[Black "Li, Hui"]
[WhiteFideId "34146919"]
[BlackFideId "15400310"]
[WhiteElo "2095"]
[BlackElo "1963"]
[Result "0-1"]
[Round "02"]
[TimeControl "180+2"]
[Date "2022.12.27"]
[WhiteClock "0:00:36"]
[BlackClock "0:00:11"]

1. d4 {[%clk 0:03:00]}  Nf6 {[%clk 0:03:00]} 2. Bg5 {[%clk 0:03:00]}  Ne4 {[%clk 0:02:59]} 3. Bf4 {[%clk 0:02:55]}  d5 {[%clk 0:02:59]} 4. e3 {[%clk 0:02:52]}  e6 {[%clk 0:02:51]} 5. Nd2 {[%clk 0:02:51]}  Nxd2 {[%clk 0:02:44]} 6. Qxd2 {[%clk 0:02:52]}  Bd6 {[%clk 0:02:44]} 7. Bg3 {[%clk 0:02:52]}  c5 {[%clk 0:02:35]} 8. c3 {[%clk 0:02:49]}  Nc6 {[%clk 0:02:32]} 9. Nf3 {[%clk 0:02:47]}  O-O {[%clk 0:02:27]} 10. Bd3 {[%clk 0:02:44]}  Qe7 {[%clk 0:02:14]} 11. O-O {[%clk 0:02:43]}  Bxg3 {[%clk 0:02:10]} 12. hxg3 {[%clk 0:02:43]}  e5 {[%clk 0:02:06]} 13. dxe5 {[%clk 0:02:42]}  Nxe5 {[%clk 0:02:06]} 14. Nxe5 {[%clk 0:02:43]}  Qxe5 {[%clk 0:02:07]} 15. Be2 {[%clk 0:02:42]}  Be6 {[%clk 0:02:06]} 16. Rad1 {[%clk 0:02:41]}  Rfd8 {[%clk 0:01:59]} 17. Bf3 {[%clk 0:02:40]}  Rac8 {[%clk 0:01:55]} 18. Rfe1 {[%clk 0:02:36]}  Qc7 {[%clk 0:01:50]} 19. Qc2 {[%clk 0:02:34]}  Qb6 {[%clk 0:01:48]} 20. Rd2 {[%clk 0:02:32]}  d4 {[%clk 0:01:43]} 21. b3 {[%clk 0:02:16]}  dxe3 {[%clk 0:01:30]} 22. Rxe3 {[%clk 0:02:15]}  Rxd2 {[%clk 0:01:15]} 23. Qxd2 {[%clk 0:02:15]}  Rd8 {[%clk 0:01:16]} 24. Rd3 {[%clk 0:02:14]}  Rxd3 {[%clk 0:01:15]} 25. Qxd3 {[%clk 0:02:15]}  g6 {[%clk 0:01:15]} 26. Qe4 {[%clk 0:02:11]}  Qa5 {[%clk 0:00:58]} 27. Qc2 {[%clk 0:02:03]}  b6 {[%clk 0:00:50]} 28. Qb2 {[%clk 0:01:59]}  Qb5 {[%clk 0:00:43]} 29. Be2 {[%clk 0:01:57]}  Qd7 {[%clk 0:00:43]} 30. c4 {[%clk 0:01:53]}  h5 {[%clk 0:00:34]} 31. Kh2 {[%clk 0:01:49]}  Qd6 {[%clk 0:00:32]} 32. Qc3 {[%clk 0:01:39]}  h4 {[%clk 0:00:30]} 33. Qe3 {[%clk 0:01:35]}  hxg3+ {[%clk 0:00:30]} 34. Qxg3 {[%clk 0:01:33]}  Qxg3+ {[%clk 0:00:27]} 35. Kxg3 {[%clk 0:01:34]}  Kg7 {[%clk 0:00:27]} 36. Kf4 {[%clk 0:01:33]}  Kf6 {[%clk 0:00:28]} 37. a3 {[%clk 0:01:24]}  g5+ {[%clk 0:00:27]} 38. Ke3 {[%clk 0:01:24]}  Ke5 {[%clk 0:00:26]} 39. f3 {[%clk 0:01:21]}  f5 {[%clk 0:00:24]} 40. g3 {[%clk 0:01:14]}  f4+ {[%clk 0:00:24]} 41. gxf4+ {[%clk 0:01:15]}  gxf4+ {[%clk 0:00:25]} 42. Kd2 {[%clk 0:01:16]}  Kd4 {[%clk 0:00:24]} 43. Bd3 {[%clk 0:01:14]}  Bh3 {[%clk 0:00:20]} 44. Be4 {[%clk 0:01:14]}  Bf1 {[%clk 0:00:15]} 45. Bd5 {[%clk 0:01:12]}  Bd3 {[%clk 0:00:15]} 46. Be6 {[%clk 0:01:09]}  Bb1 {[%clk 0:00:11]} 47. Kc1 {[%clk 0:01:03]}  Bg6 {[%clk 0:00:09]} 48. Kd2 {[%clk 0:01:02]}  Be8 {[%clk 0:00:07]} 49. b4 {[%clk 0:01:00]}  Bg6 {[%clk 0:00:05]} 50. bxc5 {[%clk 0:00:48]}  bxc5 {[%clk 0:00:06]} 51. Ke2 {[%clk 0:00:39]}  Bd3+ {[%clk 0:00:06]} 52. Kf2 {[%clk 0:00:40]}  Bxc4 {[%clk 0:00:06]} 53. Bf5 {[%clk 0:00:40]}  Bd5 {[%clk 0:00:06]} 54. Bc2 {[%clk 0:00:37]}  c4 {[%clk 0:00:07]} 55. Ke2 {[%clk 0:00:37]}  c3 {[%clk 0:00:07]} 56. Kf2 {[%clk 0:00:36]}  Bc4 {[%clk 0:00:07]} 57. Bd1 {[%clk 0:00:36]}  Bd3 {[%clk 0:00:07]} 58. Bb3 {[%clk 0:00:33]}  c2 {[%clk 0:00:07]} 59. Bxc2 {[%clk 0:00:33]}  Bxc2 {[%clk 0:00:08]} 60. Ke2 {[%clk 0:00:34]}  Bd3+ {[%clk 0:00:09]} 61. Kd2 {[%clk 0:00:35]}  Bf5 {[%clk 0:00:09]} 62. a4 {[%clk 0:00:35]}  a5 {[%clk 0:00:09]} 63. Ke2 {[%clk 0:00:34]}  Bd7 {[%clk 0:00:10]} 64. Kf2 {[%clk 0:00:35]}  Bxa4 {[%clk 0:00:10]} 65. Ke2 {[%clk 0:00:36]}  Bc6 {[%clk 0:00:11]} 0-1


[Site "https://www.chess.com"]

[Event "Titled Tuesday Blitz December 27 Late 2022"]
[White "gshwbedhkhd"]
[Black "Yanchenko, Roman"]
[BlackFideId "4137329"]
[WhiteElo "2538"]
[BlackElo "2466"]
[Result "0-1"]
[Round "02"]
[TimeControl "180+2"]
[Date "2022.12.27"]
[WhiteClock "0:00:05"]
[BlackClock "0:01:16"]

1. e4 {[%clk 0:03:00]}  e6 {[%clk 0:03:00]} 2. d4 {[%clk 0:03:00]}  d5 {[%clk 0:03:00]} 3. Bd3 {[%clk 0:03:00]}  c5 {[%clk 0:03:00]} 4. exd5 {[%clk 0:02:56]}  exd5 {[%clk 0:03:01]} 5. Nf3 {[%clk 0:02:56]}  c4 {[%clk 0:03:01]} 6. Be2 {[%clk 0:02:55]}  Bd6 {[%clk 0:03:01]} 7. O-O {[%clk 0:02:55]}  Ne7 {[%clk 0:03:01]} 8. b3 {[%clk 0:02:56]}  cxb3 {[%clk 0:03:02]} 9. axb3 {[%clk 0:02:56]}  O-O {[%clk 0:03:03]} 10. c4 {[%clk 0:02:54]}  Nbc6 {[%clk 0:03:03]} 11. Nc3 {[%clk 0:02:48]}  Bf5 {[%clk 0:03:02]} 12. Bg5 {[%clk 0:02:44]}  f6 {[%clk 0:03:02]} 13. Bh4 {[%clk 0:02:43]}  a6 {[%clk 0:03:02]} 14. Bd3 {[%clk 0:02:20]}  Qd7 {[%clk 0:02:54]} 15. Na4 {[%clk 0:02:15]}  Rad8 {[%clk 0:02:44]} 16. c5 {[%clk 0:01:33]}  Bc7 {[%clk 0:02:43]} 17. Bg3 {[%clk 0:01:28]}  Be4 {[%clk 0:02:38]} 18. Bc2 {[%clk 0:01:01]}  Nf5 {[%clk 0:02:37]} 19. Bxc7 {[%clk 0:00:56]}  Qxc7 {[%clk 0:02:37]} 20. Nb6 {[%clk 0:00:55]}  Bxf3 {[%clk 0:02:11]} 21. Qxf3 {[%clk 0:00:49]}  Nfxd4 {[%clk 0:02:12]} 22. Qd3 {[%clk 0:00:50]}  Nxc2 {[%clk 0:02:12]} 23. Qxc2 {[%clk 0:00:50]}  Nd4 {[%clk 0:02:11]} 24. Qd3 {[%clk 0:00:46]}  Qxc5 {[%clk 0:02:09]} 25. Na4 {[%clk 0:00:43]}  Qb4 {[%clk 0:02:09]} 26. Rfd1 {[%clk 0:00:39]}  Nc6 {[%clk 0:02:00]} 27. Rac1 {[%clk 0:00:34]}  d4 {[%clk 0:01:53]} 28. Nc5 {[%clk 0:00:32]}  Ne5 {[%clk 0:01:51]} 29. Qh3 {[%clk 0:00:31]}  Rc8 {[%clk 0:01:28]} 30. Qe6+ {[%clk 0:00:15]}  Kh8 {[%clk 0:01:28]} 31. Ne4 {[%clk 0:00:14]}  Rxc1 {[%clk 0:01:21]} 32. Rxc1 {[%clk 0:00:15]}  d3 {[%clk 0:01:21]} 33. Nd6 {[%clk 0:00:11]}  d2 {[%clk 0:01:21]} 34. Rd1 {[%clk 0:00:10]}  h6 {[%clk 0:01:20]} 35. Nf5 {[%clk 0:00:09]}  Qg4 {[%clk 0:01:16]} 36. Rxd2 {[%clk 0:00:06]}  Nf3+ {[%clk 0:01:16]} 37. Kh1 {[%clk 0:00:05]}  Nxd2 {[%clk 0:01:16]} 0-1


[Site "https://www.chess.com"]